bitfinex/quotes_SOLUSD_20251115
["timestamp","ask_amount","ask_price","bid_price","bid_amount"]
[1763164802345,0.7,139.17,139.09,0.79216157]
[1763164803051,0.7,139.17,139.09,10.58098926]
[1763164803223,0.7,139.17,139.09,0.65]
[1763164803419,0.7,139.17,139.1,0.65]
[1763164808541,9.93098926,139.16,139.06,0.65]
[1763164808751,100.0,139.15,139.06,0.65]
[1763164809045,9.93098926,139.14,139.04,0.65]
[1763164809246,9.93098926,139.14,139.03,21.61461147]
[1763164809247,100.0,139.11,139.03,21.89133325]
[1763164809427,0.7,139.1,138.97,12.05611421]
[1763164809625,0.7,139.12,139.0,2.64999999]
[1763164809838,0.7,139.11,139.02,0.14216157]
[1763164810224,0.7,139.11,139.03,0.65]
[1763164810823,50.7,139.11,139.03,0.65]
[1763164811022,0.71,139.1,139.03,0.65]
[1763164811331,0.71,139.1,139.01,0.67]
[1763164811332,0.85216157,139.1,139.01,0.67]
[1763164811742,0.85216157,139.1,139.0,0.14216157]
[1763164811743,50.0,139.09,139.0,0.81216157]
[1763164811940,50.0,139.09,138.99,9.78882769]
[1763164811941,100.0,139.09,138.99,0.81216157]
[1763164812153,10.49882769,139.08,138.99,0.67]
[1763164812334,9.78882769,139.06,138.97,22.27629794]
[1763164812561,100.71,139.07,138.98,0.71]
[1763164812724,0.7,139.06,138.98,0.71]
[1763164812926,10.48882769,139.06,138.98,0.71]
[1763164813424,9.78882769,139.04,138.96,0.71]
[1763164813623,59.78882769,139.04,138.95,0.14216157]
[1763164813849,0.7,139.03,138.96,0.71]
[1763164814763,0.7,139.03,138.95,0.71]
[1763164815552,100.0,139.08,138.96,9.93098926]
[1763164815762,0.7,139.09,138.96,25.31042514]
[1763164815926,0.7,139.09,138.99,0.14216157]
[1763164816443,0.7,139.09,139.0,0.71]
[1763164817044,50.7,139.09,139.0,0.71]
[1763164817237,50.0,139.07,138.98,0.71]
[1763164817446,0.7,139.06,138.98,0.71]
[1763164817766,9.78882769,139.04,138.96,0.71]
[1763164817934,50.0,139.02,138.94,0.1]
[1763164818135,50.0,139.0,138.94,0.1]
[1763164818467,0.7,139.01,138.95,0.71]
[1763164818638,0.7,139.04,138.95,0.71]
[1763164818963,0.7,139.03,138.95,0.71]
[1763164820233,0.7,139.03,138.94,0.24216157]
[1763164820234,9.78882769,139.02,138.94,0.1]
[1763164820438,59.78882769,139.02,138.94,0.1]
[1763164820647,0.7,139.01,138.94,0.81]
[1763164822148,0.7,139.01,138.94,0.1]
[1763164822970,0.7,139.01,138.95,0.71]
[1763164823438,0.7,139.03,138.95,0.71]
[1763164823641,0.7,139.03,138.95,8.149833]
[1763164824164,0.7,139.03,138.96,0.85216157]
[1763164824869,0.7,139.03,138.94,0.1]
[1763164825033,0.7,139.03,138.95,0.85216157]
[1763164828641,104.3,139.04,138.97,0.14216157]
[1763164828857,104.3,139.04,138.98,0.71]
[1763164829075,0.7,139.06,139.0,0.14216157]
[1763164829242,9.78882769,139.1,139.01,0.71]
[1763164829445,100.14216157,139.11,139.01,0.71]
[1763164829647,0.7,139.1,139.01,0.71]
[1763164830164,0.7,139.1,139.02,9.93098926]
[1763164830541,0.7,139.1,139.03,0.71]
[1763164832654,9.78882769,139.09,138.94,25.49373909]
[1763164832844,59.78882769,139.09,138.99,10.64098926]
[1763164833169,0.7,139.08,138.99,10.64098926]
[1763164833364,0.7,139.08,139.01,9.78882769]
[1763164833572,0.7,139.08,139.02,0.14216157]
[1763164833756,0.7,139.08,139.03,0.71]
[1763164833958,0.7,139.1,139.03,0.71]
[1763164834391,105.0,139.12,139.03,0.71]
[1763164834967,0.7,139.11,139.03,0.71]
[1763164835942,0.7,139.11,139.04,0.14216157]
[1763164836577,0.7,139.12,139.05,0.71]
[1763164836784,0.7,139.14,139.07,0.14216157]
[1763164837157,0.7,139.14,139.08,0.71]
[1763164838060,0.7,139.16,139.08,0.71]
[1763164838391,0.7,139.17,139.1,0.14216157]
[1763164838691,0.7,139.17,139.11,0.71]
[1763164839760,10.63098926,139.17,139.07,0.14216157]
[1763164839959,0.7,139.16,139.09,0.71]
[1763164840878,0.2,139.18,139.09,0.71]
[1763164841081,0.7,139.17,139.1,0.14216157]
[1763164841448,0.7,139.17,139.1,0.85216157]
[1763164842259,0.7,139.17,139.12,0.14216157]
[1763164842670,0.7,139.17,139.13,0.69]
[1763164842873,0.2,139.18,139.13,0.69]
[1763164843587,0.2,139.18,139.15,0.14216157]
[1763164843952,0.2,139.18,139.16,0.69]
[1763164845455,0.2,139.18,139.17,32.44002769]
[1763164845651,0.2,139.18,139.17,32.58218926]
[1763164845855,0.2,139.18,139.17,33.27218926]
[1763164846560,0.2,139.18,139.17,40.45764589]
[1763164848857,0.2,139.18,139.17,42.45764588]
[1763164849051,0.2,139.2,139.19,9.93098926]
[1763164849273,0.2,139.2,139.19,32.58218926]
[1763164849475,0.2,139.2,139.19,33.27218926]
[1763164850870,0.2,139.23,139.22,9.93098926]
[1763164851081,0.2,139.24,139.23,11.93098925]
[1763164851379,0.2,139.31,139.24,9.93098926]
[1763164851556,0.2,139.31,139.26,9.93098926]
[1763164852078,0.2,139.31,139.26,10.62098926]
[1763164852478,0.92,139.3,139.26,9.93098926]
[1763164852659,0.2,139.3,139.26,10.62098926]
[1763164853261,0.2,139.3,139.29,32.58218926]
[1763164853587,0.2,139.32,139.3,9.93098926]
[1763164853773,0.06,139.32,139.31,9.93098926]
[1763164854858,0.06,139.32,139.31,17.10922484]
[1763164855782,0.06,139.32,139.31,9.93098926]
[1763164857469,0.2,139.41,139.39,22.6512]
[1763164857663,0.72,139.4,139.39,22.6512]
[1763164857863,0.92,139.41,139.39,22.6512]
[1763164858286,0.72,139.4,139.39,22.6512]
[1763164858591,0.2,139.41,139.39,22.6512]
[1763164859373,0.2,139.41,139.4,32.58218926]
[1763164860692,0.2,139.41,139.4,34.58218925]
[1763164860909,0.2,139.41,139.4,50.4971363]
[1763164861111,0.2,139.47,139.46,9.78882769]
[1763164861310,0.2,139.47,139.46,9.93098926]
[1763164861709,0.2,139.47,139.46,0.14216157]
[1763164862430,0.2,139.47,139.44,22.6512]
[1763164862431,0.2,139.47,139.44,32.58218926]
[1763164862928,0.92,139.47,139.41,0.14216157]
[1763164863097,0.92,139.47,139.41,9.93098926]
[1763164863422,0.92,139.47,139.41,0.14216157]
[1763164863721,0.92,139.47,139.4,0.14216157]
[1763164864090,0.92,139.47,139.43,9.93098926]
[1763164865230,0.92,139.47,139.46,22.6512]
[1763164865606,0.2,139.47,139.46,22.6512]
[1763164865934,0.2,139.47,139.46,32.58218926]
[1763164867113,0.2,139.47,139.46,39.7527041]
[1763164868529,0.2,139.47,139.46,32.58218926]
[1763164869821,0.92,139.47,139.46,9.93098926]
[1763164870032,0.92,139.47,139.4,5.40100796]
[1763164870210,0.92,139.47,139.39,21.97036128]
[1763164870211,0.7,139.46,139.41,0.14216157]
[1763164870617,0.7,139.46,139.42,22.6512]
[1763164870825,0.7,139.46,139.44,22.6512]
[1763164871026,0.7,139.46,139.35,0.14216157]
[1763164871224,0.7,139.46,139.35,21.46232755]
[1763164871531,0.7,139.46,139.38,0.14216157]
[1763164871731,0.7,139.46,139.38,22.6512]
[1763164873130,0.7,139.46,139.42,22.6512]
[1763164875532,0.7,139.46,139.39,9.93098926]
[1763164875533,100.0,139.41,139.27,0.68]
[1763164875719,100.0,139.41,139.12,50.1]
[1763164875720,100.0,139.41,139.3,0.27873738]
[1763164876027,0.62,139.4,139.31,9.78882769]
[1763164876504,0.62,139.4,139.31,0.68]
[1763164876709,0.62,139.4,139.33,9.78882769]
[1763164877626,0.62,139.4,139.36,22.6512]
[1763164878209,0.2,139.48,139.44,22.6512]
[1763164878427,0.2,139.48,139.47,23.8622]
[1763164878738,0.2,139.6,139.55,22.6512]
[1763164879037,0.2,139.6,139.59,22.6512]
[1763164879409,0.2,139.6,139.59,32.58218926]
[1763164879634,0.2,139.6,139.59,33.26218926]
[1763164879843,0.2,139.61,139.59,33.26218926]
[1763164880039,0.2,139.61,139.6,10.61098926]
[1763164880334,0.7,139.71,139.64,32.58218926]
[1763164880632,0.7,139.74,139.73,22.6512]
[1763164880808,50.75368242,139.8,139.73,22.6512]
[1763164880809,0.7,139.77,139.73,22.6512]
[1763164881012,0.7,139.74,139.73,22.6512]
[1763164881348,0.7,139.74,139.71,22.6512]
[1763164881559,0.7,139.78,139.74,22.6512]
[1763164881708,0.75368242,139.8,139.74,22.6512]
[1763164881911,50.2,139.79,139.72,22.6512]
[1763164882242,50.0,139.77,139.72,22.6512]
[1763164882417,0.7,139.74,139.72,22.6512]
[1763164882612,0.7,139.74,139.69,22.6512]
[1763164883240,0.7,139.74,139.68,22.6512]
[1763164884314,0.2,139.75,139.69,10.61098926]
[1763164884520,0.2,139.75,139.72,22.6512]
[1763164885026,0.2,139.75,139.72,23.3312]
[1763164885220,0.2,139.75,139.73,9.78882769]
[1763164885424,0.2,139.75,139.73,23.47336157]
[1763164885653,0.2,139.75,139.73,22.79336157]
[1763164885927,0.2,139.75,139.73,23.47336157]
[1763164886116,0.2,139.75,139.74,9.93098926]
[1763164886530,0.2,139.75,139.74,32.58218926]
[1763164886932,0.2,139.75,139.74,33.26218926]
[1763164887123,0.2,139.75,139.74,32.58218926]
[1763164887847,0.2,139.75,139.74,22.6512]
[1763164888344,0.2,139.75,139.74,32.58218926]
[1763164888850,0.9,139.75,139.71,22.6512]
[1763164889028,0.9,139.75,139.67,0.68]
[1763164889029,0.7,139.74,139.69,0.14216157]
[1763164889349,0.7,139.74,139.64,0.68]
[1763164889532,0.7,139.74,139.64,0.14216157]
[1763164889533,50.7,139.74,139.64,0.14216157]
[1763164889729,0.7,139.73,139.64,0.82216157]
[1763164889934,0.7,139.73,139.68,22.6512]
[1763164890532,0.7,139.73,139.56,2.87016108]
[1763164890737,100.0,139.72,139.59,0.68]
[1763164890968,50.0,139.67,139.54,21.15141636]
[1763164891160,0.7,139.66,139.54,0.68]
[1763164891324,0.7,139.66,139.55,23.3312]
[1763164891728,0.7,139.66,139.56,0.82216157]
[1763164892048,0.7,139.66,139.6,22.6512]
[1763164892726,0.7,139.66,139.61,9.93098926]
[1763164893050,0.7,139.66,139.64,22.6512]
[1763164893255,100.0,139.72,139.64,22.6512]
[1763164893435,0.7,139.77,139.72,22.6512]
[1763164893636,50.2,139.82,139.73,9.93098926]
[1763164893867,0.7,139.77,139.68,22.6512]
[1763164894156,0.9,139.75,139.72,22.6512]
[1763164894457,0.2,139.75,139.73,9.93098926]
[1763164894657,0.2,139.75,139.74,22.6512]
[1763164894882,0.2,139.75,139.73,9.93098926]
[1763164895029,0.2,139.75,139.73,0.14216157]
[1763164895372,0.2,139.75,139.69,32.44002769]
[1763164895373,0.7,139.74,139.69,32.44002769]
[1763164895533,0.2,139.75,139.71,9.78882769]
[1763164895731,0.2,139.75,139.74,22.6512]
[1763164896753,0.2,139.75,139.74,32.58218926]
[1763164896956,0.2,139.75,139.74,22.6512]
[1763164897365,0.2,139.75,139.74,32.58218926]
[1763164897684,0.2,139.82,139.75,10.61098926]
[1763164897853,0.9,139.82,139.81,9.93098926]
[1763164898035,0.9,139.82,139.76,22.6512]
[1763164898237,0.9,139.82,139.77,9.93098926]
[1763164899163,50.0,139.92,139.77,10.61098926]
[1763164899364,50.0,139.92,139.82,22.6512]
[1763164899668,100.0,139.92,139.82,22.6512]
[1763164901160,0.7,139.91,139.82,22.6512]
[1763164902347,59.78882769,139.9,139.74,0.68]
[1763164902676,59.93098926,139.86,139.75,9.78882769]
[1763164902880,59.93098926,139.86,139.74,0.14216157]
[1763164903060,0.71,139.85,139.78,22.6512]
[1763164903453,0.71,139.85,139.82,22.6512]
[1763164903978,50.85216157,139.85,139.7,0.7]
[1763164904158,60.49882769,139.84,139.7,0.7]
[1763164904352,50.71,139.84,139.7,0.7]
[1763164904550,0.71,139.83,139.72,0.14216157]
[1763164904753,0.71,139.83,139.73,0.7]
[1763164904953,0.71,139.83,139.72,0.14216157]
[1763164905150,0.71,139.83,139.71,0.7]
[1763164905347,50.71,139.83,139.71,0.7]
[1763164905554,100.71,139.83,139.71,0.7]
[1763164905753,0.71,139.82,139.72,9.78882769]
[1763164905945,0.71,139.82,139.75,22.6512]
[1763164906145,0.71,139.82,139.7,0.14216157]
[1763164906146,109.78882769,139.81,139.7,0.14216157]
[1763164906356,50.0,139.79,139.68,0.7]
[1763164906874,0.71,139.78,139.67,9.78882769]
[1763164907080,0.71,139.78,139.59,1.99999999]
[1763164907081,100.0,139.77,139.64,0.7]
[1763164907285,0.71,139.76,139.65,0.14216157]
[1763164907778,109.78882769,139.75,139.62,0.7]
[1763164908087,109.78882769,139.75,139.64,0.14216157]
[1763164908388,0.71,139.74,139.66,22.6512]
[1763164908787,0.71,139.74,139.55,1.99999999]
[1763164908788,59.78882769,139.73,139.61,0.14216157]
[1763164908953,0.14216157,139.72,139.61,0.14216157]
[1763164909153,0.71,139.71,139.61,0.14216157]
[1763164909564,0.71,139.71,139.59,0.7]
[1763164909875,0.71,139.71,139.61,0.14216157]
[1763164910250,0.71,139.71,139.66,22.6512]
[1763164912760,50.0,139.77,139.67,9.93098926]
[1763164912761,0.71,139.74,139.67,9.93098926]
[1763164912962,0.71,139.74,139.67,33.28218926]
[1763164913558,0.71,139.74,139.67,32.58218926]
[1763164913759,0.71,139.74,139.67,33.28218926]
[1763164914684,0.71,139.74,139.67,32.58218926]
[1763164915259,0.71,139.77,139.68,0.7]
[1763164916068,9.78882769,139.81,139.68,0.7]
[1763164916269,50.0,139.82,139.73,0.14216157]
[1763164916483,100.0,139.82,139.72,22.6512]
[1763164916787,9.78882769,139.81,139.72,22.6512]
[1763164917591,50.0,139.82,139.73,0.14216157]
[1763164918172,59.78882769,139.84,139.73,0.14216157]
[1763164918173,0.64,139.81,139.76,22.6512]
[1763164918895,9.93098926,139.85,139.76,22.6512]
[1763164918896,9.93098926,139.85,139.76,23.3512]
[1763164919088,0.64,139.84,139.77,0.14216157]
[1763164919601,0.64,139.84,139.77,0.84216157]
[1763164920590,0.64,139.86,139.81,22.6512]
[1763164920794,0.64,139.86,139.79,22.6512]
[1763164921094,0.64,139.88,139.8,0.14216157]
[1763164921278,0.64,139.91,139.83,22.6512]
[1763164921479,0.14216157,139.92,139.83,22.6512]
[1763164921672,0.64,139.91,139.83,22.6512]
[1763164923068,9.93098926,139.88,139.77,0.14216157]
[1763164923274,9.93098926,139.88,139.78,0.14216157]
[1763164923275,50.0,139.87,139.78,0.14216157]
[1763164923495,50.0,139.87,139.8,0.14216157]
[1763164923496,0.64,139.87,139.8,0.14216157]
[1763164923700,9.78882769,139.84,139.74,9.93098926]
[1763164923876,9.78882769,139.84,139.62,33.77317149]
[1763164923877,59.78882769,139.82,139.71,0.7]
[1763164924399,0.64,139.81,139.73,22.6512]
[1763164924891,0.64,139.81,139.71,0.84216157]
[1763164925095,9.78882769,139.8,139.7,9.78882769]
[1763164925278,59.78882769,139.8,139.7,9.78882769]
[1763164925477,50.0,139.83,139.71,0.7]
[1763164925478,0.64,139.79,139.71,0.7]
[1763164925804,0.64,139.79,139.72,22.6512]
[1763164925995,0.64,139.82,139.72,22.6512]
[1763164926296,50.0,139.8,139.68,0.84216157]
[1763164926594,0.64,139.79,139.7,22.6512]
[1763164926972,0.64,139.79,139.64,17.90279264]
[1763164926973,50.78216157,139.79,139.66,0.7]
[1763164927297,50.14216157,139.77,139.66,0.7]
[1763164927668,0.64,139.76,139.66,23.3512]
[1763164928202,0.64,139.76,139.66,0.7]
[1763164928380,50.64,139.76,139.66,0.7]
[1763164928900,0.64,139.75,139.66,23.3512]
[1763164929267,0.64,139.75,139.67,0.7]
[1763164929475,0.64,139.75,139.66,22.6512]
[1763164929677,0.64,139.75,139.66,23.3512]
[1763164929899,0.64,139.75,139.66,22.6512]
[1763164930201,0.64,139.76,139.7,22.6512]
[1763164931481,0.64,139.76,139.66,22.6512]
[1763164931673,50.64,139.76,139.67,22.6512]
[1763164932080,0.64,139.75,139.67,22.6512]
[1763164932578,0.64,139.75,139.68,0.69]
[1763164932775,0.64,139.77,139.68,0.69]
[1763164935925,0.64,139.77,139.67,22.6512]
[1763164935926,0.78216157,139.77,139.67,22.6512]
[1763164936213,0.64,139.77,139.68,0.69]
[1763164937210,0.64,139.77,139.67,22.6512]
[1763164937409,50.64,139.77,139.67,22.6512]
[1763164937917,0.64,139.76,139.67,23.3412]
[1763164938294,0.64,139.76,139.67,22.6512]
[1763164938995,0.64,139.76,139.68,0.69]
[1763164940410,0.64,139.76,139.68,23.3412]
[1763164940807,0.64,139.76,139.69,0.69]
[1763164941017,50.0,139.8,139.69,0.69]
[1763164941396,50.0,139.79,139.69,0.69]
[1763164941925,50.0,139.8,139.69,0.69]
[1763164942499,50.0,139.79,139.69,0.69]
[1763164942928,50.0,139.77,139.68,22.6512]
[1763164943229,50.0,139.77,139.63,32.1888367]
[1763164943230,50.0,139.75,139.63,32.1888367]
[1763164943525,50.0,139.72,139.63,0.69]
[1763164944040,50.0,139.72,139.61,23.3412]
[1763164944324,50.0,139.72,139.61,0.69]
[1763164944515,50.0,139.72,139.62,0.69]
[1763164944711,11.93098925,139.74,139.62,0.69]
[1763164944712,50.0,139.7,139.62,0.69]
[1763164945214,100.0,139.73,139.62,0.69]
[1763164945799,9.93098926,139.72,139.62,0.69]
[1763164946028,50.0,139.7,139.59,0.69]
[1763164946712,9.93098926,139.69,139.59,0.69]
[1763164946925,9.93098926,139.69,139.61,22.6512]
[1763164947102,50.0,139.71,139.59,0.69]
[1763164947103,9.93098926,139.71,139.62,23.3412]
[1763164948711,50.0,139.72,139.59,9.78882769]
[1763164948712,9.93098926,139.69,139.61,22.6512]
[1763164949028,59.93098926,139.71,139.61,22.6512]
[1763164949202,50.14216157,139.73,139.63,22.6512]
[1763164949524,1.99999999,139.76,139.63,22.6512]
[1763164949525,59.93098926,139.76,139.65,9.78882769]
[1763164949698,9.93098926,139.76,139.67,22.6512]
[1763164949899,9.78882769,139.76,139.68,0.69]
[1763164950101,9.93098926,139.78,139.68,0.69]
[1763164950331,50.0,139.79,139.69,9.78882769]
[1763164950541,50.0,139.83,139.72,22.6512]
[1763164950701,50.0,139.82,139.73,0.69]
[1763164950899,9.93098926,139.81,139.73,0.69]
[1763164951100,50.0,139.83,139.73,0.69]
[1763164951296,50.0,139.84,139.73,23.48336157]
[1763164951539,9.93098926,139.85,139.74,23.48336157]
[1763164951725,0.14216157,139.85,139.75,23.3412]
[1763164952031,0.14216157,139.85,139.76,22.6512]
[1763164952233,9.93098926,139.85,139.76,22.6512]
[1763164952434,59.93098926,139.83,139.74,23.3412]
[1763164952611,24.65119999,139.87,139.74,22.6512]
[1763164952612,50.0,139.85,139.74,22.6512]
[1763164952940,50.0,139.85,139.65,9.70330427]
[1763164952941,50.0,139.82,139.7,22.6512]
[1763164953223,50.0,139.82,139.71,23.3412]
[1763164953517,59.93098926,139.84,139.71,23.3412]
[1763164953730,59.93098926,139.84,139.72,0.69]
[1763164954429,59.93098926,139.84,139.72,23.3412]
[1763164954814,59.93098926,139.84,139.73,0.69]
[1763164955233,100.0,139.82,139.72,22.6512]
[1763164955403,9.93098926,139.81,139.72,22.6512]
[1763164955901,100.0,139.82,139.73,0.69]
[1763164956104,50.0,139.86,139.73,10.62098926]
[1763164956339,50.0,139.86,139.75,22.6512]
[1763164956627,67.2,139.88,139.77,22.6512]
[1763164956822,67.2,139.88,139.79,22.6512]
[1763164957227,17.2,139.88,139.8,0.69]
[1763164961021,17.2,139.88,139.77,23.3412]
[1763164961022,100.0,139.87,139.77,23.3412]
[1763164961248,100.0,139.87,139.71,7.95471241]
[1763164961249,50.0,139.85,139.71,7.95471241]
[1763164961410,100.0,139.85,139.73,0.69]
[1763164961740,50.0,139.83,139.73,23.3412]
[1763164961932,100.0,139.83,139.73,23.3412]
[1763164962429,59.93098926,139.82,139.69,21.44127622]
[1763164962630,50.0,139.82,139.73,0.68]
[1763164962945,50.0,139.84,139.73,23.3312]
[1763164963118,50.0,139.84,139.73,22.6512]
[1763164963324,50.0,139.84,139.74,0.68]
[1763164964248,100.0,139.82,139.73,0.68]
[1763164964608,9.93098926,139.85,139.73,0.68]
[1763164965028,50.0,139.84,139.73,0.68]
[1763164965409,9.93098926,139.85,139.73,0.68]
[1763164965936,100.0,139.86,139.73,0.68]
[1763164966112,100.0,139.88,139.77,22.6512]
[1763164966523,100.0,139.88,139.78,0.68]
[1763164966931,50.14216157,139.93,139.82,22.6512]
[1763164967438,50.14216157,139.91,139.8,0.68]
[1763164967617,50.0,139.9,139.81,22.6512]
[1763164967818,50.14216157,139.91,139.81,22.6512]
[1763164968157,50.0,139.93,139.82,0.68]
[1763164968513,67.2,139.94,139.82,0.68]
[1763164968514,17.2,139.94,139.86,22.6512]
[1763164968954,0.2,139.96,139.87,0.68]
[1763164969322,0.2,139.96,139.83,9.78882769]
[1763164969323,50.0,139.93,139.83,22.6512]
[1763164969647,50.0,139.91,139.83,22.6512]
[1763164969938,50.0,139.91,139.82,0.68]
[1763164970141,100.0,139.91,139.82,0.68]
[1763164971146,50.0,139.94,139.83,22.6512]
[1763164971321,50.0,139.94,139.84,22.6512]
[1763164971520,50.0,139.94,139.85,0.68]
[1763164971829,0.2,139.96,139.85,0.68]
[1763164972544,0.2,139.96,139.89,22.6512]
[1763164973059,0.2,139.96,139.9,0.68]
[1763164975970,0.2,139.96,139.87,0.68]
[1763164976857,0.2,139.96,139.88,22.6512]
[1763164977228,0.2,139.96,139.89,0.68]
[1763164977970,0.2,139.96,139.85,0.14216157]
[1763164977971,0.2,139.96,139.87,23.3312]
[1763164978467,0.2,139.96,139.88,0.68]
[1763164979476,0.2,139.96,139.88,23.3312]
[1763164979827,0.2,139.96,139.89,0.68]
[1763164980138,0.2,139.96,139.89,23.3312]
[1763164980549,0.2,139.96,139.9,0.68]
[1763164981175,0.2,139.96,139.88,22.6512]
[1763164981176,0.2,139.96,139.88,0.68]
[1763164981841,50.0,139.95,139.86,0.68]
[1763164982344,0.2,139.96,139.86,0.68]
[1763164983176,50.0,139.95,139.86,0.68]
[1763164983940,9.93098926,139.94,139.79,21.21569267]
[1763164984164,50.0,139.89,139.79,0.68]
[1763164984335,50.0,139.89,139.73,21.15801659]
[1763164984538,50.0,139.87,139.79,0.68]
[1763164984958,50.0,139.89,139.79,0.68]
[1763164985582,50.0,139.87,139.7,29.26751226]
[1763164985751,50.0,139.9,139.8,0.68]
[1763164986175,59.93098926,139.91,139.8,0.68]
[1763164986467,50.0,139.92,139.8,0.68]
[1763164987258,50.0,139.88,139.8,0.68]
[1763164988002,50.0,139.86,139.77,0.68]
[1763164988867,50.0,139.84,139.77,0.68]
[1763164990266,50.0,139.84,139.75,0.72]
[1763164990801,50.0,139.81,139.73,0.72]
[1763164991302,59.93098926,139.83,139.73,0.72]
[1763164992368,50.0,139.81,139.72,22.6512]
[1763164992564,50.0,139.81,139.72,0.72]
[1763164992975,1.99999999,139.85,139.66,9.93098926]
[1763164992976,50.0,139.79,139.7,0.68]
[1763164993595,50.0,139.79,139.66,9.93098926]
[1763164993774,50.0,139.79,139.69,0.68]
[1763164993974,50.0,139.77,139.69,0.68]
[1763164994213,50.0,139.77,139.66,9.93098926]
[1763164994214,50.0,139.75,139.66,0.68]
[1763164994378,100.0,139.77,139.66,0.68]
[1763164994577,50.0,139.79,139.66,0.68]
[1763164994785,50.0,139.77,139.68,22.6512]
[1763164994985,50.0,139.79,139.68,22.6512]
[1763164995170,50.0,139.79,139.69,0.68]
[1763164995370,59.93098926,139.8,139.69,0.68]
[1763164995371,100.0,139.77,139.69,0.68]
[1763164995596,100.0,139.77,139.67,0.68]
[1763164997094,9.93098926,139.78,139.65,0.68]
[1763164997095,50.0,139.73,139.65,0.68]
[1763164997901,50.0,139.71,139.64,22.6512]
[1763164998081,50.0,139.73,139.65,0.68]
[1763164998281,50.0,139.74,139.65,0.68]
[1763164998884,100.0,139.74,139.65,0.68]
[1763164999276,50.0,139.74,139.65,0.68]
[1763164999472,59.93098926,139.73,139.65,23.3312]
[1763165000186,50.0,139.72,139.65,23.3312]
[1763165000377,50.0,139.72,139.65,22.8312]
[1763165000703,59.93098926,139.73,139.65,22.8312]
[1763165000873,50.0,139.72,139.65,22.1512]
[1763165001076,50.0,139.68,139.59,0.78]
[1763165001276,50.0,139.68,139.6,0.68]
[1763165002183,50.0,139.72,139.6,0.68]
[1763165002383,50.0,139.72,139.62,22.6512]
[1763165002898,50.0,139.72,139.63,0.68]
[1763165003398,50.0,139.7,139.62,23.3312]
[1763165003599,50.0,139.68,139.59,22.07057961]
[1763165003773,50.0,139.68,139.6,0.68]
[1763165003975,50.0,139.68,139.62,22.6512]
[1763165004210,9.93098926,139.71,139.62,22.6512]
[1763165004211,50.0,139.7,139.62,22.6512]
[1763165004372,100.0,139.73,139.63,0.68]
[1763165004681,9.93098926,139.74,139.63,0.68]
[1763165004883,100.0,139.75,139.63,0.68]
[1763165005083,9.93098926,139.74,139.63,0.68]
[1763165005284,59.93098926,139.74,139.63,0.68]
[1763165005505,50.0,139.74,139.63,0.68]
[1763165005697,50.0,139.75,139.64,22.6512]
[1763165006214,50.0,139.75,139.65,0.68]